fUST/lending_fUST_20241216
["ID","MTS","AMOUNT","RATE_DAILY","PERIOD"]
[345498924,1734298243415,-500.0,0.00027397,7]
[345498925,1734298243425,-500.0,0.00027397,7]
[345498926,1734298243435,-500.0,0.00027397,7]
[345498927,1734298243445,-151.0,0.00027397,7]
[345498928,1734298243454,-500.0,0.00027397,7]
[345498929,1734298243464,-479.0,0.00027397,7]
[345498930,1734298243475,-500.0,0.00027397,7]
[345498931,1734298243485,-500.0,0.00027397,7]
[345498932,1734298243495,-500.0,0.00027397,7]
[345498933,1734298243505,-500.0,0.00027397,7]
[345498934,1734298243514,-151.0,0.00027397,7]
[345498935,1734298243524,-500.0,0.00027397,7]
[345498936,1734298243534,-260.388755,0.00027397,7]
[345498937,1734298243549,-500.0,0.00027397,7]
[345498938,1734298243559,-500.0,0.00027397,7]
[345498939,1734298243568,-242.20279301,0.00027397,7]
[345498940,1734298243578,-500.0,0.00027397,7]
[345498941,1734298243587,-500.0,0.00027397,7]
[345498942,1734298243597,-500.0,0.00027397,7]
[345498943,1734298243606,-500.0,0.00027397,7]
[345498944,1734298243616,-488.84996,0.00027397,7]
[345498945,1734298243625,-1496.16,0.00027397,7]
[345498946,1734298243635,-500.0,0.00027397,2]
[345498947,1734298243644,-10.92380615,0.00027397,7]
[345498948,1734298243656,-489.07619385,0.00027397,7]
[345498949,1734298243666,-500.0,0.00027397,7]
[345498950,1734298243675,-151.0,0.00027397,7]
[345498951,1734298243685,-500.0,0.00027397,7]
[345498953,1734298243695,-500.0,0.00027397,7]
[345498955,1734298243704,-500.0,0.00027397,7]
[345498957,1734298243714,-500.0,0.00027397,7]
[345498959,1734298243724,-500.0,0.00027397,7]
[345498960,1734298243734,-217.22380615,0.00027397,7]
[345498961,1734298243769,-282.77619385,0.00027397,7]
[345498962,1734298243779,-500.0,0.00027397,7]
[345498963,1734298243796,-500.0,0.00027397,7]
[345498964,1734298243806,-365.56444822,0.00027397,7]
[345498991,1734298246287,-350.0,0.00027,2]
[345498992,1734298246313,-160.26073258,0.00027396,2]
[345498993,1734298246323,-139.03713642,0.00027397,7]
[345498994,1734298246333,-481.819609,0.00027397,7]
[345498995,1734298246402,-18.180391,0.00027397,7]
[345498996,1734298246412,-500.0,0.00027397,7]
[345498997,1734298246422,-500.0,0.00027397,7]
[345498998,1734298246431,-362.60718878,0.00027397,7]
[345499001,1734298820976,161.19895,0.00013973,2]
[345499056,1734299432400,-161.19895,0.00020807,2]
[345499058,1734299432410,-156.164284,0.00024985,2]
[345499060,1734299432420,-172.472445,0.00025085,2]
[345499062,1734299432429,-300.0,0.0002585,2]
[345499064,1734299432444,-300.0,0.0002585,2]
[345499066,1734299432455,-4219.9526564,0.00025851,2]
[345499068,1734299432467,-856.99773702,0.00025851,2]
[345500021,1734300405572,161.106688,0.00013973,2]
[345500075,1734300632642,-161.106688,0.00020447,2]
[345500077,1734300632653,-172.404395,0.00024393,2]
[345500079,1734300632662,-224.70011781,0.00024566,2]
[345500093,1734300632790,-656.29837822,0.00024566,2]
[345500095,1734300632802,-15.7136258,0.00024566,2]
[345500097,1734300632812,-245.16091327,0.00024664,2]
[345500720,1734300638850,-54.83908673,0.00024664,2]
[345500722,1734300638860,-7146.76091327,0.00024665,2]
[345500885,1734300640959,-21660.0,0.00024665,2]
[345501214,1734300643993,-25699.7711624,0.00024665,2]
[345501364,1734301677486,166.437242,0.00013973,2]
[345501403,1734301833156,-166.437242,0.00020447,2]
[345501404,1734301833166,-1528.93287865,0.00024254,2]
[345501405,1734301833181,-3471.06712135,0.00024254,2]
[345501406,1734301833191,-160.82318068,0.00024401,7]
[345501407,1734301833200,-939.35206262,0.00024466,2]
[345501408,1734301833211,-300.0,0.00024506,2]
[345501409,1734301833220,-24900.0,0.00024507,2]
[345501410,1734301833229,-2630.75476816,0.00024566,2]
[345501411,1734301833239,-168.622,0.00024675,7]
[345501412,1734301833249,-1275.6823823,0.00025059,2]
[345501413,1734301833258,-468.02450289,0.00025255,2]
[345501481,1734301838986,-267.546676,0.0002363,2]
[345501483,1734301838996,-471.32755966,0.00025255,2]
[345501486,1734301839005,-250.0,0.00025382,2]
[345501489,1734301839015,-300.0,0.00025499,2]
[345501492,1734301839025,-641.873003,0.00025573,2]
[345501494,1734301839034,-198.238821,0.00025753,2]
[345501496,1734301839043,-486.65,0.0002603,2]
[345501498,1734301839052,-939.35206255,0.00026045,2]
[345501500,1734301839061,-11493.53404489,0.000265,2]
[345501502,1734301839070,-43191.7637878,0.000265,2]
[345501504,1734301839080,-1307681.57659698,0.000265,2]
[345501506,1734301839090,-184.0,0.00026613,3]
[345501508,1734301839099,-184.0,0.00026613,3]
[345501510,1734301839109,-186.33,0.00026613,3]
[345501512,1734301839118,-2368.0,0.00026638,2]
[345501514,1734301839131,-151.154,0.00026638,2]
[345501516,1734301839142,-198.238821,0.00026706,2]
[345501518,1734301839164,-153.1150543,0.00026767,2]
[345501520,1734301839174,-384.562625,0.00026767,2]
[345501522,1734301839185,-153.0,0.00026767,2]
[345501524,1734301839195,-153.1150543,0.00026767,2]
[345501526,1734301839204,-153.1150543,0.00026767,2]
[345501528,1734301839215,-939.35206255,0.00026834,2]
[345501530,1734301839224,-166.437242,0.00026921,2]
[345501532,1734301839234,-420.0,0.00026956,2]
[345501534,1734301839243,-427.0708056,0.00027123,4]
[345501536,1734301839253,-178.414,0.00027177,2]
[345501538,1734301839264,-150.786,0.00027177,2]
[345501540,1734301839276,-151.0,0.00027296,7]
[345501542,1734301839286,-30635.19895684,0.00027297,3]
[345501544,1734301839295,-151.0,0.00027297,7]
[345501546,1734301839305,-151.0,0.00027297,7]
[345501547,1734301839314,-151.0,0.00027297,7]
[345501548,1734301839323,-518.403681,0.00027297,7]
[345501549,1734301839332,-518.403681,0.00027297,7]
[345501550,1734301839341,-151.0,0.00027297,7]
[345501551,1734301839351,-151.0,0.00027297,7]
[345501552,1734301839361,-281.939154,0.00027297,7]
[345501553,1734301839371,-151.39949,0.00027297,7]
[345501554,1734301839380,-151.0,0.00027297,7]
[345501555,1734301839389,-245.667835,0.00027297,7]
[345501556,1734301839400,-152.550249,0.00027297,7]
[345501557,1734301839409,-151.0,0.00027297,7]
[345501558,1734301839417,-526.594918,0.00027297,7]
[345501559,1734301839427,-526.594918,0.00027297,7]
[345501560,1734301839436,-306.77821,0.00027297,7]
[345501561,1734301839445,-306.77821,0.00027297,7]
[345501562,1734301839454,-151.0,0.00027297,7]
[345501563,1734301839464,-151.0,0.00027297,7]
[345501565,1734301839473,-151.0,0.00027297,7]
[345501567,1734301839483,-218.35,0.000273,2]
[345501569,1734301839492,-160.26073257,0.00027396,2]
[345501571,1734301839501,-500.0,0.00027396,7]
[345501573,1734301839511,-151.0,0.00027396,7]
[345501575,1734301839520,-151.0,0.00027396,7]
[345501577,1734301839529,-344.864507,0.00027396,7]
[345501579,1734301839540,-344.864507,0.00027396,7]
[345501581,1734301839549,-500.0,0.00027397,7]
[345501583,1734301839559,-500.0,0.00027397,7]
[345501585,1734301839568,-500.0,0.00027397,7]
[345501587,1734301839578,-500.0,0.00027397,7]
[345501589,1734301839588,-500.0,0.00027397,7]
[345501591,1734301839597,-500.0,0.00027397,7]
[345501593,1734301839607,-500.0,0.00027397,7]
[345501595,1734301839617,-500.0,0.00027397,7]
[345501597,1734301839626,-500.0,0.00027397,7]
[345501599,1734301839635,-500.0,0.00027397,7]
[345501601,1734301839645,-500.0,0.00027397,7]
[345501603,1734301839656,-500.0,0.00027397,7]
[345501605,1734301839666,-500.0,0.00027397,7]
[345501607,1734301839675,-513.43742654,0.00027397,7]
[345501609,1734301839685,-500.0,0.00027397,7]
[345501611,1734301839694,-500.0,0.00027397,7]
[345501613,1734301839703,-500.0,0.00027397,7]
[345501615,1734301839713,-551.45619552,0.00027397,7]
[345501617,1734301839722,-500.0,0.00027397,7]
[345501619,1734301839731,-500.0,0.00027397,7]
[345501621,1734301839741,-500.0,0.00027397,7]
[345501623,1734301839750,-500.0,0.00027397,7]
[345501625,1734301839759,-500.0,0.00027397,7]
[345501627,1734301839768,-500.0,0.00027397,7]
[345501629,1734301839777,-500.0,0.00027397,7]
[345501631,1734301839787,-500.0,0.00027397,7]
[345501633,1734301839796,-502.80374805,0.00027397,7]
[345501635,1734301839806,-500.0,0.00027397,7]
[345501637,1734301839816,-500.0,0.00027397,7]
[345501640,1734301839828,-500.0,0.00027397,7]
[345501642,1734301839841,-500.0,0.00027397,7]
[345501645,1734301839855,-5000.0,0.00027397,7]
[345501647,1734301839868,-5000.0,0.00027397,7]
[345501649,1734301839881,-500.0,0.00027397,7]
[345501650,1734301839893,-5000.0,0.00027397,7]
[345501651,1734301839905,-500.0,0.00027397,7]
[345501652,1734301839918,-500.0,0.00027397,7]
[345501653,1734301839929,-165.22145526,0.00027397,7]
[345501654,1734301839940,-500.0,0.00027397,7]
[345501655,1734301839952,-500.0,0.00027397,7]
[345501656,1734301839964,-500.0,0.00027397,7]
[345501657,1734301839977,-500.0,0.00027397,7]
[345501658,1734301839988,-500.0,0.00027397,7]
[345501659,1734301840000,-500.0,0.00027397,7]
[345501660,1734301840013,-503.27311249,0.00027397,7]
[345501661,1734301840026,-500.0,0.00027397,7]
[345501662,1734301840037,-500.0,0.00027397,7]
[345501663,1734301840048,-456.96,0.00027397,7]
[345501664,1734301840060,-500.0,0.00027397,7]
[345501665,1734301840071,-500.0,0.00027397,7]
[345501666,1734301840083,-500.0,0.00027397,7]
[345501668,1734301840094,-500.0,0.00027397,7]
[345501670,1734301840107,-500.0,0.00027397,7]
[345501672,1734301840120,-383.17580561,0.00027397,7]
[345501673,1734301840132,-500.0,0.00027397,7]
[345501674,1734301840145,-591.8698189,0.00027397,7]
[345501675,1734301840157,-151.0,0.00027397,7]
[345501676,1734301840167,-151.0,0.00027397,7]
[345501677,1734301840179,-151.0,0.00027397,7]
[345501678,1734301840193,-151.0,0.00027397,7]
[345501679,1734301840206,-151.0,0.00027397,7]
[345501680,1734301840220,-151.0,0.00027397,7]
[345501681,1734301840233,-151.0,0.00027397,7]
[345501682,1734301840246,-151.0,0.00027397,7]
[345501683,1734301840261,-151.0,0.00027397,7]
[345501684,1734301840275,-151.0,0.00027397,7]
[345501685,1734301840288,-193.449012,0.00027397,7]
[345501686,1734301840300,-151.0,0.00027397,7]
[345501687,1734301840312,-151.0,0.00027397,7]
[345501688,1734301840324,-151.0,0.00027397,7]
[345501690,1734301840336,-151.0,0.00027397,7]
[345501691,1734301840346,-151.0,0.00027397,7]
[345501692,1734301840356,-151.0,0.00027397,7]
[345501693,1734301840368,-151.0,0.00027397,7]
[345501694,1734301840379,-151.0,0.00027397,7]
[345501695,1734301840392,-218.228303,0.00027397,7]
[345501696,1734301840409,-500.0,0.00027397,7]
[345501697,1734301840421,-500.0,0.00027397,7]
[345501698,1734301840433,-500.0,0.00027397,7]
[345501699,1734301840443,-500.0,0.00027397,7]
[345501700,1734301840455,-254.75176455,0.00027397,7]
[345501701,1734301840466,-483.38324623,0.00027397,7]
[345501702,1734301840478,-500.0,0.00027397,7]
[345501703,1734301840491,-500.0,0.00027397,7]
[345501704,1734301840503,-500.0,0.00027397,7]
[345501706,1734301840514,-151.0,0.00027397,7]
[345501708,1734301840524,-151.0,0.00027397,7]
[345501710,1734301840535,-151.0,0.00027397,7]
[345501712,1734301840546,-151.0,0.00027397,7]
[345501715,1734301840557,-151.0,0.00027397,7]
[345501717,1734301840568,-151.0,0.00027397,7]
[345501719,1734301840579,-151.0,0.00027397,7]
[345501721,1734301840591,-151.0,0.00027397,7]
[345501723,1734301840602,-151.0,0.00027397,7]
[345501725,1734301840613,-151.0,0.00027397,7]
[345501728,1734301840624,-151.0,0.00027397,7]
[345501730,1734301840636,-166.66555,0.00027397,7]
[345501732,1734301840647,-500.0,0.00027397,7]
[345501734,1734301840660,-500.0,0.00027397,7]
[345501736,1734301840671,-523.7133627,0.00027397,7]
[345501739,1734301840682,-500.0,0.00027397,7]
[345501741,1734301840693,-500.0,0.00027397,7]
[345501743,1734301840705,-536.80674944,0.00027397,7]
[345501745,1734301840716,-512.04729042,0.00027397,7]
[345501747,1734301840727,-618.65873201,0.00027397,7]
[345501750,1734301840738,-500.0,0.00027397,7]
[345501752,1734301840749,-500.0,0.00027397,7]
[345501754,1734301840761,-151.0,0.00027397,7]
[345501756,1734301840771,-151.0,0.00027397,7]
[345501758,1734301840782,-151.0,0.00027397,7]
[345501760,1734301840793,-151.0,0.00027397,7]
[345501763,1734301840803,-151.0,0.00027397,7]
[345501765,1734301840815,-151.0,0.00027397,7]
[345501767,1734301840826,-500.0,0.00027397,7]
[345501769,1734301840837,-500.0,0.00027397,7]
[345501772,1734301840848,-500.0,0.00027397,7]
[345501774,1734301840859,-804.6,0.00027397,7]
[345501776,1734301840870,-238.887874,0.00027397,7]
[345501778,1734301840880,-238.887874,0.00027397,7]
[345501780,1734301840891,-238.887874,0.00027397,7]
[345501782,1734301840904,-238.887874,0.00027397,7]
[345501784,1734301840914,-238.887882,0.00027397,7]
[345501787,1734301840925,-500.0,0.00027397,7]
[345501789,1734301840935,-817.325923,0.00027397,7]
[345501791,1734301840946,-817.325923,0.00027397,7]
[345501793,1734301840956,-817.325923,0.00027397,7]
[345501795,1734301840967,-817.325923,0.00027397,7]
[345501797,1734301840978,-500.0,0.00027397,7]
[345501800,1734301840989,-817.325923,0.00027397,7]
[345501813,1734301841102,-817.325923,0.00027397,7]
[345501815,1734301841117,-817.325923,0.00027397,7]
[345501817,1734301841127,-817.325923,0.00027397,7]
[345501819,1734301841136,-817.325923,0.00027397,7]
[345501821,1734301841146,-817.325923,0.00027397,7]
[345501823,1734301841160,-817.325923,0.00027397,7]
[345501825,1734301841170,-817.325923,0.00027397,7]
[345501827,1734301841179,-817.325923,0.00027397,7]
[345501829,1734301841192,-817.325923,0.00027397,7]
[345501831,1734301841202,-817.325923,0.00027397,7]
[345501833,1734301841211,-817.325923,0.00027397,7]
[345501835,1734301841220,-817.325923,0.00027397,7]
[345501837,1734301841231,-817.325923,0.00027397,7]
[345501839,1734301841240,-817.325923,0.00027397,7]
[345501841,1734301841249,-817.325931,0.00027397,7]
[345501843,1734301841261,-500.0,0.00027397,7]
[345501845,1734301841270,-500.0,0.00027397,7]
[345501847,1734301841279,-500.0,0.00027397,7]
[345501849,1734301841288,-500.0,0.00027397,7]
[345501851,1734301841297,-500.0,0.00027397,7]
[345501853,1734301841307,-500.06626625,0.00027397,7]
[345501855,1734301841316,-504.99282886,0.00027397,7]
[345501857,1734301841325,-500.0,0.00027397,7]
[345501859,1734301841334,-500.0,0.00027397,7]
[345501861,1734301841343,-500.0,0.00027397,7]
[345501863,1734301841352,-500.0,0.00027397,7]
[345501865,1734301841362,-500.0,0.00027397,7]
[345501867,1734301841371,-500.0,0.00027397,7]
[345501869,1734301841380,-500.0,0.00027397,7]
[345501871,1734301841389,-500.0,0.00027397,7]
[345501873,1734301841398,-151.0,0.00027397,7]
[345501875,1734301841413,-151.0,0.00027397,7]
[345501877,1734301841422,-500.0,0.00027397,7]
[345501879,1734301841432,-151.0,0.00027397,7]
[345501881,1734301841441,-151.0,0.00027397,7]
[345501883,1734301841452,-151.0,0.00027397,7]
[345501885,1734301841462,-151.0,0.00027397,7]
[345501887,1734301841471,-500.0,0.00027397,7]
[345501889,1734301841480,-151.0,0.00027397,7]
[345501891,1734301841490,-151.0,0.00027397,7]
[345501893,1734301841499,-500.0,0.00027397,7]
[345501895,1734301841509,-151.0,0.00027397,7]
[345501897,1734301841518,-500.0,0.00027397,7]
[345501899,1734301841527,-151.0,0.00027397,7]
[345501901,1734301841536,-151.0,0.00027397,7]
[345501903,1734301841546,-151.0,0.00027397,7]
[345501905,1734301841556,-151.0,0.00027397,7]
[345501907,1734301841565,-175.04225,0.00027397,7]
[345501909,1734301841575,-464.71061844,0.00027397,7]
[345501911,1734301841584,-514.95396094,0.00027397,7]
[345501913,1734301841595,-344.864507,0.00027397,7]
[345501915,1734301841604,-344.864507,0.00027397,7]
[345501917,1734301841613,-344.864507,0.00027397,7]
[345501919,1734301841623,-344.864507,0.00027397,7]
[345501921,1734301841632,-344.864507,0.00027397,7]
[345501923,1734301841641,-344.864507,0.00027397,7]
[345501925,1734301841652,-344.864507,0.00027397,7]
[345501927,1734301841662,-500.0,0.00027397,7]
[345501929,1734301841671,-344.864507,0.00027397,7]
[345501931,1734301841681,-344.864507,0.00027397,7]
[345501933,1734301841691,-344.864507,0.00027397,7]
[345501935,1734301841700,-344.864507,0.00027397,7]
[345501937,1734301841710,-344.864507,0.00027397,7]
[345501939,1734301841720,-344.864507,0.00027397,7]
[345501941,1734301841730,-344.864507,0.00027397,7]
[345501943,1734301841739,-344.864507,0.00027397,7]
[345501945,1734301841748,-344.864507,0.00027397,7]
[345501947,1734301841758,-500.0,0.00027397,7]
[345501949,1734301841767,-344.864507,0.00027397,7]
[345501951,1734301841777,-344.86451147,0.00027397,7]
[345501953,1734301841786,-293.20367228,0.00027397,7]
[345501956,1734301841795,-500.0,0.00027397,7]
[345501957,1734301841805,-500.0,0.00027397,7]
[345501959,1734301841814,-500.0,0.00027397,7]
[345501962,1734301841824,-337.72605936,0.00027397,7]
[345501964,1734301841833,-151.0,0.00027397,7]
[345501966,1734301841842,-500.0,0.00027397,7]
[345501968,1734301841852,-199.900747,0.00027397,7]
[345501970,1734301841861,-500.0,0.00027397,7]
[345501972,1734301841870,-542.63,0.00027397,7]
[345501974,1734301841879,-500.0,0.00027397,7]
[345501976,1734301841889,-191.91346,0.00027397,7]
[345501978,1734301841899,-500.0,0.00027397,7]
[345501980,1734301841909,-500.0,0.00027397,7]
[345501982,1734301841918,-518.403681,0.00027397,7]
[345501984,1734301841927,-518.403681,0.00027397,7]
[345501985,1734301841936,-518.403681,0.00027397,7]
[345501988,1734301841946,-518.403681,0.00027397,7]
[345501989,1734301841958,-500.0,0.00027397,7]
[345501991,1734301841967,-502.0647412,0.00027397,7]
[345501993,1734301841976,-518.403681,0.00027397,7]
[345501995,1734301841985,-518.403681,0.00027397,7]
[345501997,1734301841994,-518.403681,0.00027397,7]
[345501999,1734301842003,-518.403681,0.00027397,7]
[345502001,1734301842013,-518.403681,0.00027397,7]
[345502003,1734301842022,-518.403681,0.00027397,7]
[345502005,1734301842031,-518.403681,0.00027397,7]
[345502007,1734301842041,-518.403681,0.00027397,7]
[345502009,1734301842050,-580.01,0.00027397,7]
[345502011,1734301842059,-518.403681,0.00027397,7]
[345502013,1734301842068,-518.403681,0.00027397,7]
[345502015,1734301842077,-151.0,0.00027397,7]
[345502017,1734301842086,-518.403681,0.00027397,7]
[345502019,1734301842095,-285.525286,0.00027397,7]
[345502021,1734301842105,-518.403681,0.00027397,7]
[345502023,1734301842114,-518.403681,0.00027397,7]
[345502025,1734301842123,-518.403672,0.00027397,7]
[345502028,1734301842133,-151.0,0.00027397,7]
[345502030,1734301842143,-151.0,0.00027397,7]
[345502032,1734301842153,-500.0,0.00027397,7]
[345502034,1734301842162,-247.17495148,0.00027397,7]
[345502035,1734301842171,-500.0,0.00027397,7]
[345502038,1734301842182,-500.0,0.00027397,7]
[345502040,1734301842193,-254.14968914,0.00027397,7]
[345502042,1734301842203,-500.0,0.00027397,7]
[345502044,1734301842213,-646.79,0.00027397,7]
[345502046,1734301842224,-500.0,0.00027397,7]
[345502048,1734301842234,-500.0,0.00027397,7]
[345502050,1734301842243,-151.0,0.00027397,7]
[345502052,1734301842253,-151.0,0.00027397,7]
[345502054,1734301842264,-500.0,0.00027397,7]
[345502056,1734301842273,-151.0,0.00027397,7]
[345502058,1734301842282,-151.0,0.00027397,7]
[345502060,1734301842292,-151.0,0.00027397,7]
[345502062,1734301842301,-151.0,0.00027397,7]
[345502064,1734301842310,-151.0,0.00027397,7]
[345502065,1734301842319,-500.0,0.00027397,7]
[345502067,1734301842329,-151.0,0.00027397,7]
[345502070,1734301842339,-151.0,0.00027397,7]
[345502072,1734301842348,-522.57,0.00027397,7]
[345502073,1734301842358,-500.0,0.00027397,7]
[345502075,1734301842367,-500.0,0.00027397,7]
[345502077,1734301842377,-500.0,0.00027397,7]
[345502080,1734301842386,-500.0,0.00027397,7]
[345502082,1734301842395,-529.51682103,0.00027397,7]
[345502084,1734301842407,-500.0,0.00027397,7]
[345502086,1734301842417,-500.0,0.00027397,7]
[345502087,1734301842427,-500.0,0.00027397,7]
[345502089,1734301842436,-283.63131913,0.00027397,7]
[345502091,1734301842446,-500.0,0.00027397,7]
[345502093,1734301842458,-500.0,0.00027397,7]
[345502096,1734301842469,-177.54307986,0.00027397,7]
[345502098,1734301842480,-500.0,0.00027397,7]
[345502100,1734301842490,-500.0,0.00027397,7]
[345502102,1734301842500,-457.62354678,0.00027397,7]
[345502104,1734301842509,-151.0,0.00027397,7]
[345502106,1734301842520,-151.0,0.00027397,7]
[345502108,1734301842529,-151.0,0.00027397,7]
[345502110,1734301842538,-151.0,0.00027397,7]
[345502112,1734301842547,-151.0,0.00027397,7]
[345502114,1734301842556,-151.0,0.00027397,7]
[345502116,1734301842565,-5639.8,0.00027397,7]
[345502118,1734301842574,-500.0,0.00027397,7]
[345502120,1734301842583,-500.0,0.00027397,7]
[345502122,1734301842592,-526.594918,0.00027397,7]
[345502124,1734301842602,-526.594918,0.00027397,7]
[345502126,1734301842611,-526.594918,0.00027397,7]
[345502128,1734301842621,-526.594918,0.00027397,7]
[345502130,1734301842631,-526.594918,0.00027397,7]
[345502132,1734301842640,-526.594918,0.00027397,7]
[345502134,1734301842652,-526.594918,0.00027397,7]
[345502136,1734301842663,-526.594918,0.00027397,7]
[345502138,1734301842673,-526.594918,0.00027397,7]
[345502140,1734301842682,-526.594918,0.00027397,7]
[345502142,1734301842691,-526.594918,0.00027397,7]
[345502144,1734301842700,-526.594918,0.00027397,7]
[345502146,1734301842710,-526.594918,0.00027397,7]
[345502148,1734301842719,-526.594918,0.00027397,7]
[345502150,1734301842729,-526.594918,0.00027397,7]
[345502152,1734301842738,-502.07346321,0.00027397,7]
[345502154,1734301842747,-306.77821,0.00027397,7]
[345502156,1734301842757,-306.77821,0.00027397,7]
[345502158,1734301842767,-526.594918,0.00027397,7]
[345502160,1734301842776,-306.77821,0.00027397,7]
[345502162,1734301842786,-526.594918,0.00027397,7]
[345502164,1734301842795,-555.45563821,0.00027397,7]
[345502166,1734301842805,-306.77821,0.00027397,7]
[345502168,1734301842814,-526.594914,0.00027397,7]
[345502170,1734301842824,-306.77821,0.00027397,7]
[345502172,1734301842833,-306.77821,0.00027397,7]
[345502174,1734301842843,-306.77821,0.00027397,7]
[345502176,1734301842852,-306.77821,0.00027397,7]
[345502178,1734301842862,-306.77821,0.00027397,7]
[345502180,1734301842872,-500.0,0.00027397,7]
[345502182,1734301842881,-306.77821,0.00027397,7]
[345502184,1734301842890,-306.77821,0.00027397,7]
[345502186,1734301842901,-306.77821,0.00027397,7]
[345502188,1734301842910,-306.77821,0.00027397,7]
[345502190,1734301842919,-306.77821,0.00027397,7]
[345502192,1734301842928,-306.77821,0.00027397,7]
[345502194,1734301842937,-306.77821,0.00027397,7]
[345502196,1734301842947,-306.77821,0.00027397,7]
[345502198,1734301842957,-500.0,0.00027397,7]
[345502200,1734301842966,-306.778207,0.00027397,7]
[345502202,1734301842975,-500.0,0.00027397,7]
[345502204,1734301842986,-746.01,0.00027397,7]
[345502206,1734301842995,-500.0,0.00027397,7]
[345502208,1734301843004,-500.0,0.00027397,7]
[345502210,1734301843013,-508.6014023,0.00027397,7]
[345502212,1734301843023,-3319.22458006,0.00027397,2]
[345502226,1734301843118,-3840.40541994,0.00027397,2]
[345502229,1734301843128,-500.0,0.00027397,7]
[345502232,1734301843137,-249.45419999,0.00027397,7]
[345502234,1734301843146,-1433.82,0.00027397,7]
[345502236,1734301843157,-500.0,0.00027397,7]
[345502238,1734301843167,-503.47907222,0.00027397,7]
[345502240,1734301843176,-151.0,0.00027397,7]
[345502242,1734301843188,-151.0,0.00027397,7]
[345502245,1734301843198,-151.0,0.00027397,7]
[345502247,1734301843207,-500.0,0.00027397,7]
[345502249,1734301843216,-151.0,0.00027397,7]
[345502251,1734301843226,-151.0,0.00027397,7]
[345502253,1734301843236,-151.0,0.00027397,7]
[345502255,1734301843246,-151.0,0.00027397,7]
[345502257,1734301843255,-151.0,0.00027397,7]
[345502259,1734301843266,-151.0,0.00027397,7]
[345502261,1734301843276,-151.0,0.00027397,7]
[345502263,1734301843284,-189.060391,0.00027397,7]
[345502265,1734301843294,-335.25008717,0.00027397,7]
[345502267,1734301843303,-500.0,0.00027397,7]
[345502269,1734301843312,-151.0,0.00027397,7]
[345502271,1734301843322,-151.0,0.00027397,7]
[345502273,1734301843332,-500.0,0.00027397,7]
[345502275,1734301843343,-151.0,0.00027397,7]
[345502277,1734301843353,-151.0,0.00027397,7]
[345502280,1734301843363,-151.0,0.00027397,7]
[345502282,1734301843373,-151.0,0.00027397,7]
[345502284,1734301843383,-226.695984,0.00027397,7]
[345502295,1734301843480,-151.0,0.00027397,7]
[345502296,1734301843490,-151.0,0.00027397,7]
[345502297,1734301843499,-151.0,0.00027397,7]
[345502298,1734301843509,-163.187357,0.00027397,7]
[345502299,1734301843518,-666.0,0.000274,2]
[345502300,1734301843527,-187.4,0.00027409,6]
[345502301,1734301843537,-2367.24040608,0.000275,2]
[345502302,1734301843546,-153.18108165,0.00027571,21]
[345502303,1734301843555,-5000.0,0.00027571,3]
[345502304,1734301843565,-5000.0,0.00027571,3]